bitfinex/quotes_BTCUSD_20230106
["timestamp","ask_amount","ask_price","bid_price","bid_amount"]
[1673012490202,0.01350962,16787.0,16783.0,0.00015]
[1673012490458,0.25118751,16787.0,16783.0,0.0997671]
[1673012490725,0.65118751,16787.0,16783.0,0.0997671]
[1673012490987,1.24688651,16787.0,16783.0,0.0997671]
[1673012491244,1.24888651,16787.0,16786.0,0.14]
[1673012491498,1.24888651,16787.0,16783.0,0.00015]
[1673012491499,1.00920862,16787.0,16783.0,0.00015]
[1673012491754,1.24988651,16787.0,16783.0,0.13815]
[1673012492007,1.24988651,16787.0,16783.0,0.06308347]
[1673012492008,0.65118751,16787.0,16783.0,0.06308347]
[1673012492264,0.65118751,16787.0,16784.0,0.00630835]
[1673012492265,0.65418751,16787.0,16784.0,0.00630835]
[1673012492530,0.65418751,16787.0,16784.0,0.06924182]
[1673012492531,0.01350962,16787.0,16784.0,0.06924182]
[1673012493071,0.01650962,16787.0,16784.0,0.06924182]
[1673012493551,0.01650962,16787.0,16784.0,0.00630835]
[1673012493553,0.25418751,16787.0,16784.0,0.60211135]
[1673012493841,0.01650962,16787.0,16784.0,0.66504482]
[1673012494102,0.25118751,16787.0,16785.0,0.06650448]
[1673012494370,0.01650962,16787.0,16785.0,0.06650448]
[1673012494625,0.01650962,16787.0,16784.0,0.14530835]
[1673012495195,0.01350962,16787.0,16784.0,0.00630835]
[1673012495723,0.01650962,16787.0,16784.0,0.14530835]
[1673012496307,0.01650962,16787.0,16784.0,1.39983382]
[1673012496608,0.01650962,16787.0,16785.0,1.0]
[1673012496615,0.01650962,16787.0,16785.0,1.1177]
[1673012496846,0.01650962,16787.0,16786.0,0.11177]
[1673012497421,0.01350962,16787.0,16786.0,0.11177]
[1673012497831,0.01550962,16787.0,16786.0,0.11177]
[1673012498104,0.01350962,16787.0,16786.0,0.11177]
[1673012498380,0.01550962,16787.0,16786.0,0.847504]
[1673012498676,0.01550962,16787.0,16786.0,1.443238]
[1673012498871,0.01550962,16787.0,16786.0,1.44316613]
[1673012500575,0.01550962,16787.0,16786.0,1.56126613]
[1673012501342,0.01550962,16787.0,16786.0,1.44316613]
[1673012501588,0.01381562,16789.0,16786.0,1.44316613]
[1673012501829,0.01381562,16789.0,16787.0,0.14431661]
[1673012502072,0.01381562,16789.0,16787.0,1.33569361]
[1673012502308,0.01381562,16789.0,16787.0,0.73999561]
[1673012503043,0.01381562,16789.0,16787.0,0.76599561]
[1673012503286,0.01381562,16789.0,16787.0,1.36169461]
[1673012503570,0.01381562,16789.0,16788.0,0.13616946]
[1673012504061,0.01381562,16789.0,16787.0,0.621679]
[1673012504062,0.01381562,16789.0,16787.0,0.026]
[1673012504306,0.72794462,16789.0,16787.0,0.026]
[1673012504553,0.90643648,16789.0,16787.0,0.026]
[1673012504794,0.90643648,16789.0,16785.0,1.595741]
[1673012505114,0.57948537,16789.0,16788.0,0.001]
[1673012505332,0.34180748,16789.0,16788.0,0.001]
[1673012505574,0.31080748,16789.0,16785.0,1.65867447]
[1673012505816,0.54848537,16789.0,16785.0,0.34175598]
[1673012506062,1.4117841,16789.0,16785.0,0.34175598]
[1673012506295,1.4117841,16789.0,16785.0,0.40468945]
[1673012506559,0.57849186,16788.0,16784.0,1.752577]
[1673012506809,0.23767789,16787.0,16783.0,1.595809]
[1673012507058,0.23767789,16786.0,16783.0,1.595809]
[1673012507294,0.23767789,16785.0,16783.0,2.19165]
[1673012507774,0.17849186,16787.0,16783.0,1.595841]
[1673012508022,0.23767789,16787.0,16783.0,1.65877447]
[1673012508271,0.41616975,16787.0,16785.0,0.14]
[1673012508515,0.41616975,16787.0,16783.0,0.65877447]
[1673012508516,0.17849186,16787.0,16783.0,0.65877447]
[1673012508965,0.41616975,16787.0,16783.0,0.65877447]
[1673012509221,0.68383948,16787.0,16783.0,0.65877447]
[1673012509490,1.27954648,16787.0,16783.0,0.92817661]
[1673012509747,1.28154648,16787.0,16783.0,1.06717661]
[1673012510835,0.17849186,16786.0,16783.0,0.47133561]
[1673012511098,0.41616975,16786.0,16783.0,0.139]
[1673012511633,0.17849186,16786.0,16783.0,0.139]
[1673012511907,0.17849186,16786.0,16783.0,0.595839]
[1673012512168,1.01390975,16786.0,16783.0,0.139]
[1673012512428,1.28157948,16786.0,16783.0,0.139]
[1673012512895,0.17849186,16785.0,16783.0,0.139]
[1673012513169,0.17849186,16785.0,16783.0,0.2124852]
[1673012513691,1.51688311,16785.0,16783.0,0.139]
[1673012513978,0.90841786,16784.0,16783.0,0.139]
[1673012514225,0.90841786,16784.0,16780.0,0.6032332]
[1673012514226,1.77189259,16784.0,16780.0,0.6032332]
[1673012514490,0.29700828,16782.0,16780.0,0.0074612]
[1673012514744,0.612026,16781.0,16780.0,0.06838344]
[1673012514997,0.53468617,16782.0,16780.0,0.0073112]
[1673012514998,0.35617789,16782.0,16780.0,0.0073112]
[1673012515295,0.1185,16782.0,16780.0,0.0073112]
[1673012515582,0.29700828,16782.0,16780.0,0.0073112]
[1673012515847,0.29700828,16782.0,16780.0,0.1463112]
[1673012515848,0.30000828,16782.0,16780.0,0.1463112]
[1673012516113,0.89288428,16782.0,16780.0,0.0073112]
[1673012516378,1.012156,16781.0,16780.0,0.1463112]
[1673012516977,1.78657628,16781.0,16780.0,0.1463112]
[1673012517237,0.1265,16781.0,16780.0,0.0073112]
[1673012517490,0.0085,16781.0,16780.0,0.1463112]
[1673012517750,0.0085,16781.0,16780.0,0.0073112]
[1673012518022,0.0115,16781.0,16780.0,0.0073112]
[1673012518306,0.0085,16781.0,16780.0,0.0073112]
[1673012518590,0.0115,16781.0,16780.0,0.0073112]
[1673012518847,0.0085,16781.0,16780.0,0.0073112]
[1673012519107,0.0115,16781.0,16780.0,0.1463112]
[1673012519406,0.14508,16781.0,16780.0,0.0073112]
[1673012519709,0.0085,16781.0,16780.0,0.0073112]
[1673012519981,0.14508,16781.0,16780.0,0.0073112]
[1673012520231,0.0115,16781.0,16780.0,0.1463112]
[1673012520788,0.0085,16781.0,16780.0,0.0073112]
[1673012521049,0.0085,16781.0,16780.0,0.1443612]
[1673012521307,0.77437928,16783.0,16780.0,0.15952844]
[1673012521563,0.77437928,16783.0,16780.0,0.36146191]
[1673012521564,0.003,16781.0,16780.0,0.36146191]
[1673012521824,2.51411398,16784.0,16780.0,0.36146191]
[1673012521825,2.69262226,16784.0,16780.0,0.75546944]
[1673012522128,0.0085,16783.0,16780.0,0.81840291]
[1673012522375,0.0085,16783.0,16780.0,0.22246191]
[1673012522642,0.0085,16783.0,16780.0,0.75546844]
[1673012523166,0.17850828,16784.0,16781.0,0.13848031]
[1673012523422,0.17859828,16785.0,16781.0,1.13437431]
[1673012523718,0.003,16783.0,16782.0,0.06293347]
[1673012523987,0.003,16783.0,16781.0,1.13437431]
[1673012524247,0.003,16783.0,16782.0,0.11343743]
[1673012524514,0.57850828,16785.0,16782.0,0.70931343]
[1673012524823,1.20328726,16785.0,16782.0,0.1763709]
[1673012525091,1.4420447,16785.0,16782.0,0.1763709]
[1673012525367,0.17850828,16784.0,16782.0,0.11343743]
[1673012525881,0.17850828,16784.0,16782.0,0.11443743]
[1673012526160,0.41618617,16784.0,16782.0,0.001]
[1673012526446,0.4547707,16783.0,16782.0,0.001]
[1673012526704,1.1852967,16783.0,16782.0,0.001]
[1673012526964,2.7769787,16783.0,16780.0,0.0073112]
[1673012527227,2.58113887,16783.0,16782.0,0.138]
[1673012527683,2.58113887,16783.0,16780.0,0.0073112]
[1673012527684,2.95548698,16783.0,16780.0,0.0073112]
[1673012527688,2.95548698,16783.0,16782.0,0.139]
[1673012527689,3.40415824,16783.0,16782.0,0.139]
[1673012527909,2.52136982,16783.0,16780.0,0.0073112]
[1673012528130,2.52136982,16783.0,16780.0,0.1463112]
[1673012528131,1.17492807,16782.0,16780.0,0.1463112]
[1673012528410,0.612026,16781.0,16780.0,0.0073112]
[1673012528672,1.48756783,16782.0,16780.0,0.0073112]
[1673012528982,1.207938,16781.0,16780.0,0.0073112]
[1673012529546,1.80385,16781.0,16780.0,0.0073112]
[1673012530100,0.595912,16781.0,16780.0,0.0073112]
[1673012530360,0.59591,16782.0,16780.0,0.1443612]
[1673012530626,0.003,16781.0,16780.0,0.29852844]
[1673012530884,0.003,16781.0,16780.0,0.2833612]
[1673012531402,2.80530083,16783.0,16780.0,0.1443612]
[1673012531650,0.003,16782.0,16780.0,0.20924467]
[1673012531911,2.84094017,16783.0,16780.0,0.0073112]
[1673012532163,0.003,16781.0,16780.0,0.20924467]
[1673012532416,0.003,16781.0,16780.0,0.1463112]
[1673012532714,0.003,16781.0,16780.0,0.16167344]
[1673012533183,0.003,16781.0,16780.0,1.35356744]
[1673012533433,3.91440906,16786.0,16780.0,2.33256744]
[1673012533434,3.17130207,16786.0,16780.0,2.33256744]
[1673012533712,3.17130207,16786.0,16781.0,0.06293347]
[1673012533713,0.003,16782.0,16781.0,0.06293347]
[1673012533976,6e-05,16784.0,16781.0,1.191824]
[1673012534237,6e-05,16784.0,16782.0,0.5191824]
[1673012535519,0.03106,16784.0,16782.0,0.5191824]
[1673012535534,0.03106,16784.0,16782.0,0.1191824]
[1673012535795,0.031,16784.0,16781.0,0.401]
[1673012536064,0.26867789,16784.0,16781.0,0.401]
[1673012536332,0.595813,16784.0,16781.0,0.99591]
[1673012536603,0.595813,16784.0,16782.0,0.106591]
[1673012536604,0.625813,16784.0,16782.0,0.106591]
[1673012536870,0.595813,16784.0,16782.0,0.099591]
[1673012537142,0.031,16784.0,16782.0,0.099591]
[1673012537394,0.031,16784.0,16781.0,0.59691]
[1673012537395,0.62681,16784.0,16781.0,0.59691]
[1673012537648,0.86448789,16784.0,16780.0,1.52969244]
[1673012537922,0.83348789,16784.0,16780.0,1.5143302]
[1673012538203,1.90449496,16784.0,16782.0,0.007]
[1673012538460,1.66681707,16784.0,16782.0,0.007]
[1673012539242,0.69658083,16783.0,16780.0,0.0073112]
[1673012539521,1.72596572,16783.0,16781.0,0.001]
[1673012539788,0.29658083,16783.0,16780.0,0.0073112]
[1673012540046,0.1185,16783.0,16782.0,0.007]
[1673012540310,0.1185,16783.0,16780.0,0.12796384]
[1673012540311,0.70508083,16783.0,16780.0,0.12796384]
[1673012540589,0.53625872,16783.0,16780.0,0.1053112]
[1673012540867,0.29858083,16783.0,16780.0,0.1053112]
[1673012541138,0.80337996,16783.0,16780.0,0.1053112]
[1673012541394,0.56570207,16783.0,16780.0,0.1053112]
[1673012541660,0.29858083,16783.0,16780.0,0.1053112]
[1673012541959,0.29858083,16783.0,16780.0,0.11657344]
[1673012542770,0.29858083,16783.0,16780.0,0.1053112]
[1673012543629,0.29858083,16783.0,16780.0,1.36013767]
[1673012543630,0.002,16783.0,16780.0,1.36013767]
[1673012543894,0.002,16783.0,16780.0,1.76013767]
[1673012544152,0.002,16783.0,16781.0,0.4]
[1673012544413,0.002,16783.0,16781.0,0.80562942]
[1673012544963,0.002,16783.0,16781.0,1.40154142]
[1673012545473,0.002,16783.0,16781.0,1.80154142]
[1673012545746,0.26727124,16785.0,16782.0,0.1]
[1673012546078,0.00015,16785.0,16782.0,1.35464547]
[1673012546328,0.00015,16785.0,16783.0,0.13546455]
[1673012546574,0.00015,16785.0,16783.0,0.73129555]
[1673012547058,1.9305378,16786.0,16783.0,0.73129555]
[1673012547304,0.027,16785.0,16783.0,0.79422902]
[1673012547557,1.9305378,16786.0,16783.0,0.84939555]
[1673012547796,0.027,16785.0,16783.0,0.92332902]
[1673012548042,0.26712124,16785.0,16783.0,0.84939555]
[1673012548288,0.002,16785.0,16784.0,0.0923329]
[1673012548540,0.002,16785.0,16784.0,0.6881379]
[1673012548790,0.002,16785.0,16784.0,1.2839429]
[1673012549521,3.3045878,16787.0,16784.0,1.4024429]
[1673012549768,0.002,16785.0,16784.0,1.60537637]
[1673012550010,0.002,16785.0,16784.0,1.5424429]
[1673012550493,0.00015,16787.0,16784.0,1.4024429]
[1673012550727,0.00015,16787.0,16786.0,0.237]
[1673012550728,0.002,16787.0,16786.0,0.237]
[1673012550978,1.08362468,16789.0,16786.0,0.237]
[1673012551298,0.26712124,16788.0,16786.0,1.13420433]
[1673012551542,0.26712124,16788.0,16786.0,0.595734]
[1673012551781,0.28093686,16789.0,16787.0,0.1185]
[1673012552027,0.01381562,16789.0,16787.0,1.25266733]
[1673012552274,0.01381562,16789.0,16787.0,1.18973386]
[1673012552517,0.01381562,16789.0,16787.0,1.35203503]
[1673012553244,0.04081562,16789.0,16787.0,1.36303503]
[1673012553755,0.04081562,16789.0,16787.0,1.35203503]
[1673012554019,0.01381562,16789.0,16788.0,0.59403686]
[1673012554270,0.01381562,16789.0,16788.0,1.40053276]
[1673012554992,0.01381562,16789.0,16788.0,1.80053276]
[1673012555228,0.01381562,16789.0,16788.0,2.10053276]
[1673012555474,0.03881562,16789.0,16788.0,2.28176623]
[1673012555711,0.01325795,16790.0,16788.0,2.21878852]
[1673012555961,0.002,16789.0,16788.0,1.6452959]
[1673012556246,0.01325795,16790.0,16788.0,1.68183276]
[1673012556517,0.01325795,16790.0,16788.0,1.3442959]
[1673012556518,0.002,16789.0,16788.0,1.3442959]
[1673012556757,0.01325795,16790.0,16788.0,2.10033276]
[1673012557008,0.01525795,16790.0,16789.0,1.20307014]
[1673012557246,0.01525795,16790.0,16789.0,3.87475961]
[1673012557483,0.00380612,16790.0,16789.0,3.81182614]
[1673012558206,0.00380612,16790.0,16789.0,3.50212015]
[1673012558726,0.01343586,16791.0,16790.0,0.54266224]
[1673012558994,0.01343586,16791.0,16790.0,1.87602573]
[1673012559483,0.01343586,16791.0,16790.0,1.87603258]
[1673012559721,0.01343586,16791.0,16790.0,2.17603258]
[1673012560210,0.01543586,16791.0,16790.0,2.31503258]
[1673012560453,0.01543586,16791.0,16790.0,2.01503258]
[1673012561197,0.01543586,16791.0,16790.0,1.89653258]
[1673012561450,0.01543586,16791.0,16790.0,2.19653258]
[1673012561701,0.01543586,16791.0,16790.0,1.89653258]
[1673012562187,0.01543586,16791.0,16790.0,0.14461224]
[1673012562188,0.25311375,16791.0,16790.0,0.14461224]
[1673012562429,0.01543586,16791.0,16790.0,0.14461224]
[1673012562676,0.15248586,16791.0,16790.0,0.14461224]
[1673012563161,0.77301186,16791.0,16790.0,0.14461224]
[1673012563404,0.77101186,16791.0,16790.0,0.00561224]
[1673012563643,0.77101186,16791.0,16790.0,0.14561224]
[1673012563644,1.66492235,16791.0,16790.0,0.14561224]
[1673012563893,0.89251186,16791.0,16790.0,0.14561224]
[1673012564372,1.48806886,16791.0,16790.0,0.14561224]
[1673012564614,1.48806886,16791.0,16790.0,0.00561224]
[1673012564615,1.78506886,16791.0,16790.0,0.00561224]
[1673012564858,1.78806886,16791.0,16790.0,0.14561224]
[1673012565111,2.18506886,16791.0,16790.0,0.00561224]
[1673012565356,2.33706886,16791.0,16790.0,0.01261224]
[1673012565613,2.30306886,16791.0,16790.0,0.00561224]
[1673012565864,2.33706886,16791.0,16790.0,0.01661224]
[1673012566109,1.76656886,16791.0,16790.0,0.00561224]
[1673012566425,1.80056886,16791.0,16790.0,0.01661224]
[1673012566701,2.66807535,16791.0,16790.0,0.01661224]
[1673012566960,3.26363235,16791.0,16790.0,0.01661224]
[1673012567212,2.63262586,16791.0,16790.0,0.01661224]
[1673012568006,2.93262586,16791.0,16790.0,0.01661224]
[1673012568263,2.9682652,16791.0,16790.0,0.01661224]
[1673012569065,3.74016678,16791.0,16790.0,0.01661224]
[1673012569572,5.38038753,16791.0,16790.0,0.01661224]
[1673012569834,5.79478671,16791.0,16790.0,0.01661224]
[1673012570091,5.97426466,16791.0,16790.0,0.01661224]
[1673012570354,6.15281468,16791.0,16790.0,0.01661224]
[1673012571136,5.79579812,16791.0,16790.0,0.01661224]
[1673012571675,5.79579812,16791.0,16783.0,0.3630181]
[1673012571676,5.58780475,16791.0,16783.0,0.3630181]
[1673012571923,0.1177,16785.0,16784.0,0.06293347]
[1673012572191,0.1177,16785.0,16782.0,0.1]
[1673012572192,0.24617789,16785.0,16782.0,0.1]
[1673012572444,0.84970389,16784.0,16782.0,0.1]
[1673012572708,0.24617789,16784.0,16782.0,0.15070706]
[1673012572976,0.59577,16785.0,16782.0,0.15070706]
[1673012573230,0.59577,16785.0,16784.0,0.00841193]
[1673012573231,0.64077,16785.0,16784.0,0.00841193]
[1673012573492,0.0535,16785.0,16784.0,0.00841193]
[1673012573755,0.64927,16785.0,16784.0,0.00841193]
[1673012574093,2.119679,16785.0,16784.0,0.00841193]
[1673012574285,2.193179,16785.0,16784.0,0.00641193]
[1673012574539,1.930566,16785.0,16784.0,0.00641193]
[1673012574794,2.049566,16785.0,16784.0,0.00735193]
[1673012575334,2.249566,16785.0,16784.0,0.00735193]
[1673012575565,1.931066,16785.0,16784.0,0.00735193]
[1673012575821,2.331066,16785.0,16784.0,0.00735193]
[1673012576347,1.931066,16785.0,16784.0,0.00735193]
[1673012576881,1.335296,16785.0,16784.0,0.00735193]
[1673012577923,0.739526,16785.0,16784.0,0.00735193]
[1673012578178,1.335296,16785.0,16784.0,0.00735193]
[1673012579245,0.739526,16785.0,16784.0,0.00735193]
[1673012579722,0.119,16785.0,16784.0,0.00735193]
[1673012580546,1.316796,16785.0,16784.0,0.00735193]
[1673012580768,0.109,16785.0,16784.0,0.00735193]
[1673012581293,0.109,16785.0,16784.0,0.14440193]
[1673012581531,0.109,16785.0,16784.0,0.83090032]
[1673012581864,0.109,16785.0,16784.0,1.19352661]
[1673012582088,0.109,16785.0,16784.0,1.78933161]
[1673012582605,0.109,16785.0,16784.0,1.90783161]
[1673012582884,0.104,16785.0,16784.0,2.30783161]
[1673012583165,0.104,16785.0,16784.0,1.71202661]
[1673012583418,0.104,16785.0,16784.0,0.63509532]
[1673012583680,6e-05,16788.0,16784.0,0.63409532]
[1673012583941,6e-05,16788.0,16785.0,0.88876948]
[1673012584204,6e-05,16788.0,16785.0,0.88891228]
[1673012584726,4.0998,16789.0,16785.0,1.48467628]
[1673012584987,4.0998,16789.0,16785.0,1.52467628]
[1673012584988,0.013,16788.0,16785.0,1.52467628]
[1673012585238,0.013,16788.0,16785.0,1.52517574]
[1673012585504,0.013,16788.0,16786.0,0.15251757]
[1673012585757,1.4195,16789.0,16786.0,1.1112741]
[1673012586021,1.4195,16789.0,16786.0,1.17420757]
[1673012586291,0.74615645,16791.0,16786.0,1.17420757]
[1673012586292,1.34173545,16791.0,16786.0,1.17420757]
[1673012586548,0.0085,16790.0,16787.0,0.42561814]
[1673012586814,0.014,16789.0,16786.0,0.51520224]
[1673012587149,0.014,16789.0,16785.0,1.09914953]
[1673012587150,0.23767789,16789.0,16785.0,1.42187863]
[1673012587340,0.014,16789.0,16786.0,0.40179306]
[1673012587582,1.599737,16790.0,16786.0,0.36285828]
[1673012587583,1.199737,16790.0,16786.0,0.36285828]
[1673012587841,0.610115,16790.0,16787.0,0.035]
[1673012588095,0.610115,16790.0,16787.0,0.46087208]
[1673012588360,0.014,16789.0,16787.0,0.09793347]
[1673012588629,0.0085,16790.0,16787.0,0.595691]
[1673012588872,0.0085,16790.0,16787.0,1.17722751]
[1673012589130,0.0085,16790.0,16787.0,1.40976867]
[1673012589390,0.01351745,16791.0,16787.0,1.772526]
[1673012589691,0.01351745,16791.0,16788.0,0.36284597]
[1673012589918,0.01351745,16791.0,16788.0,0.42577944]
[1673012590178,0.01351745,16791.0,16789.0,0.04257794]
[1673012590431,0.60908145,16791.0,16789.0,0.04257794]
[1673012590709,0.006,16790.0,16788.0,0.36284597]
[1673012591004,0.23767789,16790.0,16787.0,0.1554452]
[1673012591243,0.43767789,16790.0,16787.0,0.1554452]
[1673012591498,0.43767789,16790.0,16786.0,1.86967289]
[1673012591755,1.03327289,16790.0,16789.0,0.039]
[1673012592015,0.804095,16790.0,16787.0,0.36288849]
[1673012592297,0.612026,16789.0,16787.0,0.04]
[1673012592544,1.04177289,16790.0,16786.0,0.36263073]
[1673012592798,1.04177289,16790.0,16786.0,0.71146893]
[1673012592799,1.63739589,16790.0,16786.0,0.71146893]
[1673012593343,1.55290149,16790.0,16786.0,1.30719993]
[1673012593641,1.55290149,16790.0,16786.0,1.94293393]
[1673012593642,0.97030649,16790.0,16786.0,1.94293393]
[1673012594929,0.97030649,16790.0,16786.0,0.75146893]
[1673012595185,1.56589849,16790.0,16786.0,0.40263073]
[1673012595433,1.56589849,16790.0,16786.0,0.4655642]
[1673012595682,0.1370056,16790.0,16786.0,0.4655642]
[1673012595957,0.37468349,16790.0,16786.0,0.4655642]
[1673012596218,0.37468349,16790.0,16787.0,0.04655642]
[1673012596482,0.37468349,16790.0,16787.0,0.47158613]
[1673012596483,0.1370056,16790.0,16787.0,0.47158613]
[1673012597273,0.1240056,16790.0,16787.0,0.47158613]
[1673012597604,0.1370056,16790.0,16787.0,0.08655642]
[1673012597800,0.1370056,16790.0,16788.0,0.00865564]
[1673012599174,0.1285056,16790.0,16788.0,1.14278897]
[1673012599428,0.1155056,16790.0,16789.0,0.59333686]
[1673012599694,0.12942164,16790.0,16789.0,0.59333686]
[1673012599960,0.12942164,16790.0,16789.0,0.78849461]
[1673012600802,0.12942164,16790.0,16789.0,0.67069461]
[1673012600803,0.11542164,16790.0,16789.0,0.67069461]
[1673012601082,0.12942164,16790.0,16789.0,0.70969461]
[1673012601339,0.12942164,16790.0,16789.0,0.23415775]
[1673012602130,0.12942164,16790.0,16789.0,0.039]
[1673012603212,0.72501364,16790.0,16789.0,0.039]
[1673012603735,0.72001364,16790.0,16789.0,0.039]
[1673012604247,0.12442164,16790.0,16789.0,0.039]
[1673012604503,0.72001364,16790.0,16789.0,0.039]
[1673012604756,1.49322151,16790.0,16789.0,0.039]
[1673012605016,2.79328717,16790.0,16789.0,0.039]
[1673012605275,3.23732684,16790.0,16789.0,0.039]
[1673012605544,3.37090304,16790.0,16789.0,0.039]
[1673012606639,3.31567131,16790.0,16789.0,0.039]
[1673012606823,2.87163164,16790.0,16789.0,0.039]
[1673012607110,2.90727098,16790.0,16789.0,0.039]
[1673012607358,2.87163164,16790.0,16789.0,0.039]
[1673012608670,3.31695544,16790.0,16789.0,0.039]
[1673012608918,3.46550877,16790.0,16789.0,0.039]
[1673012609662,4.02667575,16790.0,16784.0,0.43442778]
[1673012609930,0.4454018,16787.0,16784.0,0.0692854]
[1673012610190,0.85820389,16786.0,16784.0,0.00635193]
[1673012610450,0.24617789,16786.0,16784.0,0.00635193]
[1673012610697,1.02007661,16786.0,16784.0,0.00635193]
[1673012611231,0.78239872,16786.0,16784.0,0.00635193]
[1673012611477,0.604234,16786.0,16784.0,0.04735193]
[1673012611729,0.0085,16786.0,16784.0,0.04735193]
[1673012611981,0.0085,16786.0,16784.0,0.00635193]
[1673012612239,1.73123125,16786.0,16784.0,0.00635193]
[1673012612498,1.49355336,16786.0,16784.0,0.00635193]
[1673012612750,0.12392164,16786.0,16784.0,0.00635193]
[1673012613007,0.12392164,16786.0,16784.0,0.1093512]
[1673012613259,0.12392164,16786.0,16784.0,0.00635193]
[1673012613524,0.13692164,16786.0,16784.0,0.04735193]
[1673012613773,0.91081836,16786.0,16784.0,0.04735193]
[1673012615857,1.17805944,16786.0,16784.0,0.04735193]
[1673012616110,1.77379344,16786.0,16784.0,0.04735193]
[1673012616632,1.65142714,16785.0,16784.0,0.04735193]
[1673012616904,2.55429941,16785.0,16784.0,0.04735193]
[1673012617942,2.55429941,16785.0,16784.0,0.00635193]
[1673012618253,2.68272105,16785.0,16784.0,0.04735193]
[1673012618738,2.68268661,16785.0,16784.0,0.04735193]
[1673012618983,1.77408616,16785.0,16784.0,0.04735193]
[1673012619244,1.17831616,16785.0,16784.0,0.04735193]
[1673012619539,0.91093863,16785.0,16784.0,0.04735193]
[1673012620019,0.31516863,16785.0,16784.0,0.04735193]
[1673012620527,0.30666863,16785.0,16784.0,0.04735193]
[1673012620829,0.12842164,16785.0,16784.0,0.04735193]
[1673012621336,0.12842164,16785.0,16784.0,0.19922471]
[1673012621580,0.12842164,16785.0,16784.0,0.04735193]
[1673012622120,0.30666863,16785.0,16784.0,0.04735193]
[1673012623124,0.57404616,16785.0,16784.0,0.04735193]
[1673012624211,0.30666863,16785.0,16784.0,0.04735193]
[1673012626658,0.90243863,16785.0,16784.0,0.04735193]
[1673012626905,0.91093863,16785.0,16784.0,0.04735193]
[1673012627155,2.38611216,16785.0,16784.0,0.04735193]
[1673012627388,2.1304076,16785.0,16784.0,0.04735193]
[1673012627670,2.74235417,16785.0,16784.0,0.04735193]
[1673012627914,2.56418661,16785.0,16784.0,0.04735193]
[1673012628150,2.76418661,16785.0,16784.0,0.04735193]
[1673012628382,2.56418661,16785.0,16784.0,0.04724193]
[1673012629576,2.86071089,16785.0,16784.0,0.04724193]
[1673012630060,2.90438945,16785.0,16784.0,0.04724193]
[1673012630302,3.9176042,16785.0,16784.0,0.04724193]
[1673012630544,3.35737754,16785.0,16784.0,0.04724193]
[1673012630795,3.50265102,16785.0,16784.0,0.04724193]
[1673012631037,3.80265102,16785.0,16784.0,0.04724193]
[1673012631270,3.35740046,16785.0,16784.0,0.04724193]
[1673012631762,3.34440046,16785.0,16784.0,0.00624193]
[1673012632006,3.05840046,16785.0,16784.0,0.04324193]
[1673012632258,3.05840046,16785.0,16784.0,0.00624193]
[1673012632259,3.34440046,16785.0,16784.0,0.00624193]
[1673012632536,3.34440046,16785.0,16784.0,0.04124193]
[1673012632537,3.35140046,16785.0,16784.0,0.04124193]
[1673012632743,3.94064212,16785.0,16784.0,0.04124193]
[1673012633231,2.88903498,16785.0,16784.0,0.04124193]
[1673012633468,2.67521603,16785.0,16784.0,0.04124193]
[1673012634705,3.07521603,16785.0,16784.0,0.04124193]
[1673012635193,3.55339564,16785.0,16784.0,0.04124193]
[1673012636452,2.67521071,16785.0,16784.0,0.04124193]
[1673012636696,3.12048419,16785.0,16784.0,0.04124193]
[1673012636973,3.42048419,16785.0,16784.0,0.04124193]
[1673012637213,3.15339564,16785.0,16784.0,0.04124193]
[1673012637454,3.10681461,16785.0,16784.0,0.04124193]
[1673012637705,2.54404113,16785.0,16784.0,0.04124193]
[1673012637962,3.43444629,16785.0,16784.0,0.04124193]
[1673012638210,3.19059775,16785.0,16784.0,0.04124193]
[1673012638453,3.89054786,16785.0,16784.0,0.04124193]
[1673012638704,3.59060265,16785.0,16784.0,0.04124193]
[1673012638989,3.85776229,16785.0,16784.0,0.04124193]
[1673012639496,3.41255977,16785.0,16784.0,0.04124193]
[1673012639747,3.01261298,16785.0,16784.0,0.04124193]
[1673012640741,3.4578155,16785.0,16784.0,0.04124193]
[1673012640978,3.01261298,16785.0,16784.0,0.04124193]
[1673012641223,2.23884828,16785.0,16784.0,0.04124193]
[1673012641473,0.57717777,16785.0,16784.0,0.04124193]
[1673012641720,0.57717777,16785.0,16784.0,0.17518612]
[1673012641953,0.57717777,16785.0,16784.0,0.15924193]
[1673012642239,0.57717777,16785.0,16784.0,0.04124193]
[1673012642731,0.76389264,16785.0,16784.0,0.04124193]
[1673012643967,0.58567777,16785.0,16784.0,0.04124193]
[1673012644469,0.57717777,16785.0,16784.0,0.04124193]
[1673012644712,0.75539264,16785.0,16784.0,0.04124193]
[1673012645477,1.38726185,16785.0,16784.0,0.04124193]
[1673012645720,1.20896478,16785.0,16784.0,0.04124193]
[1673012646219,1.03120109,16785.0,16784.0,0.04124193]
[1673012646726,1.38700766,16785.0,16784.0,0.04124193]
[1673012647216,1.98277766,16785.0,16784.0,0.04124193]
[1673012647455,3.05370169,16785.0,16784.0,0.04124193]
[1673012647698,3.47753578,16785.0,16784.0,0.04124193]
[1673012647945,4.65622594,16785.0,16784.0,0.04124193]
[1673012648174,4.41854805,16785.0,16784.0,0.04124193]
[1673012648440,4.53704805,16785.0,16784.0,0.04124193]
[1673012648682,5.13099572,16785.0,16784.0,0.04124193]
[1673012648968,5.12927114,16785.0,16784.0,0.04124193]
[1673012649271,4.65432201,16785.0,16784.0,0.04124193]
[1673012649490,4.61868267,16785.0,16784.0,0.04124193]
[1673012650013,3.79988466,16785.0,16784.0,0.04124193]
[1673012650524,4.33540962,16785.0,16784.0,0.04124193]
[1673012651008,4.03540962,16785.0,16784.0,0.04124193]
[1673012651264,4.33540962,16785.0,16784.0,0.04124193]
[1673012652268,3.93540962,16785.0,16784.0,0.04124193]
[1673012652508,2.92296195,16785.0,16784.0,0.1041754]
[1673012652751,2.92296195,16785.0,16784.0,0.04124193]
[1673012652752,1.77541099,16785.0,16784.0,0.04124193]
[1673012652992,2.31093595,16785.0,16784.0,0.04124193]
[1673012653728,1.77541099,16785.0,16784.0,0.04124193]
[1673012653980,1.76691099,16785.0,16784.0,0.04124193]
[1673012655387,1.77541099,16785.0,16784.0,0.04124193]
[1673012655633,1.0301979,16785.0,16784.0,0.04124193]
[1673012655903,1.38725835,16785.0,16784.0,0.04124193]
[1673012656354,1.38725706,16785.0,16784.0,0.04124193]
[1673012657826,1.20871182,16785.0,16784.0,0.44124193]
[1673012658065,1.03016791,16785.0,16784.0,0.44124193]
[1673012658293,1.03016791,16785.0,16784.0,0.04124193]
[1673012659075,0.76238624,16785.0,16784.0,1.94538879]
[1673012659321,0.76238624,16785.0,16784.0,1.46985193]